fUST/lending_fUST_20241220
["ID","MTS","AMOUNT","RATE_DAILY","PERIOD"]
[346072492,1734691846990,-2885.41,0.00022191,6]
[346072493,1734691847000,-1468.43,0.00022191,6]
[346072494,1734691847009,-791.72,0.00022191,6]
[346072495,1734691847018,-2055.66,0.00022191,6]
[346072496,1734691847029,-774.78,0.00022191,6]
[346072498,1734691847040,-1731.65,0.00022191,6]
[346072499,1734691847050,-533.0,0.00022191,6]
[346072500,1734691847060,-500.0,0.00022191,6]
[346072501,1734691847070,-500.0,0.00022191,6]
[346072502,1734691847081,-816.78,0.00022191,6]
[346072503,1734691847090,-500.0,0.00022191,6]
[346072504,1734691847100,-1775.06,0.00022191,6]
[346072505,1734691847111,-500.0,0.00022191,6]
[346072506,1734691847120,-500.0,0.00022191,6]
[346072507,1734691847130,-509.4009045,0.00022191,6]
[346072508,1734691847139,-841.16,0.00022191,6]
[346072509,1734691847149,-2466.21,0.00022191,6]
[346072510,1734691847158,-472.24060304,0.00022191,6]
[346072511,1734691847168,-500.0,0.00022191,6]
[346072512,1734691847178,-500.0,0.00022191,6]
[346072513,1734691847187,-765.57,0.00022191,6]
[346072514,1734691847197,-642.81490919,0.00022191,6]
[346072515,1734691847209,-500.0,0.00022191,6]
[346072516,1734691847218,-500.0,0.00022191,6]
[346072517,1734691847227,-891.15,0.00022191,6]
[346072518,1734691847237,-500.0,0.00022191,6]
[346072519,1734691847246,-500.0,0.00022191,6]
[346072520,1734691847256,-500.0,0.00022191,6]
[346072521,1734691847265,-685.83,0.00022191,6]
[346072522,1734691847274,-1301.66,0.00022191,6]
[346072523,1734691847284,-1977.18,0.00022191,6]
[346072524,1734691847293,-500.0,0.00022191,6]
[346072525,1734691847302,-500.0,0.00022191,6]
[346072526,1734691847311,-1524.11,0.00022191,6]
[346072527,1734691847320,-500.0,0.00022191,6]
[346072528,1734691847330,-1209.61,0.00022191,6]
[346072529,1734691847340,-500.0,0.00022191,6]
[346072530,1734691847349,-500.0,0.00022191,6]
[346072531,1734691847497,-500.0,0.00022191,6]
[346072532,1734691847526,-2065.36,0.00022191,6]
[346072533,1734691847536,-500.0,0.00022191,6]
[346072534,1734691847545,-500.0,0.00022191,6]
[346072535,1734691847555,-500.0,0.00022191,6]
[346072536,1734691847564,-2800.21,0.00022191,6]
[346072537,1734691847573,-863.56,0.00022191,6]
[346072538,1734691847583,-1801.47,0.00022191,6]
[346072539,1734691847592,-1806.73,0.00022191,6]
[346072540,1734691847601,-7820.43,0.00022191,6]
[346072541,1734691847611,-560.36,0.00022191,6]
[346072542,1734691847620,-16299.45,0.00022191,6]
[346072543,1734691847630,-544.74,0.00022191,6]
[346072544,1734691847640,-869.17,0.00022191,6]
[346072545,1734691847649,-1371.34,0.00022191,6]
[346072546,1734691847659,-500.0,0.00022191,6]
[346072547,1734691847668,-500.0,0.00022191,6]
[346072548,1734691847678,-1068.41,0.00022191,6]
[346072549,1734691847688,-500.0,0.00022191,6]
[346072550,1734691847697,-500.0,0.00022191,6]
[346072551,1734691847709,-500.0,0.00022191,6]
[346072552,1734691847718,-500.0,0.00022191,6]
[346072553,1734691847727,-613.47,0.00022191,6]
[346072554,1734691847737,-500.0,0.00022191,6]
[346072555,1734691847747,-500.0,0.00022191,6]
[346072556,1734691847756,-500.0,0.00022191,6]
[346072557,1734691847765,-3627.12,0.00022191,6]
[346072558,1734691847774,-500.0,0.00022191,6]
[346072559,1734691847784,-30926.27,0.00022191,6]
[346072560,1734691847793,-404.75188845,0.00022191,6]
[346072561,1734691847802,-672.84,0.00022191,6]
[346072562,1734691847811,-682.31,0.00022191,6]
[346072563,1734691847821,-200.0,0.00022191,6]
[346072564,1734691847830,-624.53,0.00022191,6]
[346072565,1734691847839,-636.48,0.00022191,6]
[346072566,1734691847848,-682.54,0.00022191,6]
[346072567,1734691847858,-597.69,0.00022191,6]
[346072568,1734691847867,-19874.77,0.00022191,6]
[346072569,1734691847876,-1804.85,0.00022191,6]
[346072570,1734691847885,-697.73,0.00022191,6]
[346072571,1734691847895,-500.0,0.00022191,6]
[346072572,1734691847904,-594.43822785,0.00022191,6]
[346072573,1734691847914,-202.92167443,0.00022191,6]
[346072574,1734691847923,-5054.19,0.00022191,6]
[346072575,1734691847933,-500.0,0.00022191,6]
[346072576,1734691847942,-500.0,0.00022191,6]
[346072577,1734691847952,-15154.54,0.00022191,6]
[346072578,1734691847966,-503.32437581,0.00022191,6]
[346072579,1734691847976,-5369.71,0.00022191,6]
[346072580,1734691847986,-1390.47,0.00022191,6]
[346072581,1734691847995,-954.78,0.00022191,6]
[346072582,1734691848004,-2454.35,0.00022191,6]
[346072583,1734691848013,-500.0,0.00022191,6]
[346072584,1734691848022,-77449.93,0.00022191,6]
[346072585,1734691848032,-742.57,0.00022191,6]
[346072586,1734691848046,-500.0,0.00022191,6]
[346072587,1734691848056,-500.0,0.00022191,6]
[346072588,1734691848066,-889.50834162,0.00022191,6]
[346072589,1734691848781,-301.04308994,0.00020838,2]
[346072590,1734691848791,-156.45691001,0.00021917,6]
[346072591,1734692054894,204.04469,0.00013973,2]
[346072593,1734692254536,1000.0,0.00025,120]
[346072594,1734692359826,-164.606948,0.0002411,35]
[346072595,1734692359848,-164.606948,0.0002411,44]
[346072596,1734692359874,-164.606948,0.0002411,52]
[346072597,1734692359897,-164.606948,0.0002411,60]
[346072598,1734692359919,-164.606948,0.0002411,69]
[346072599,1734692359944,-164.606948,0.0002411,77]
[346072600,1734692359967,-12.358312,0.0002411,86]
[346072601,1734692360217,-152.248636,0.0002411,86]
[346072602,1734692360240,-164.606948,0.0002411,94]
[346072603,1734692360264,-164.606948,0.0002411,103]
[346072604,1734692360288,-164.606948,0.0002411,111]
[346072605,1734692360311,-164.606948,0.0002411,119]
[346072606,1734692360333,-37200.35420802,0.0002411,30]
[346072607,1734692360815,-810.676428,0.0002411,30]
[346072608,1734692360856,-178.29293598,0.00024634,30]
[346072611,1734692593488,942.391674,0.00025,120]
[346072612,1734692593800,903.292742,0.00025,120]
[346072613,1734692594248,866.468,0.00025,120]
[346072614,1734692594818,829.462,0.00025,120]
[346072615,1734692595150,795.7293,0.00025,120]
[346072616,1734692595465,762.46853,0.00025,120]
[346072617,1734692595953,730.82288,0.00025,120]
[346072618,1734692596406,699.1,0.00025,120]
[346072619,1734692596694,670.763519,0.00025,120]
[346072620,1734692597177,642.17,0.00025,120]
[346072621,1734692597475,616.9835,0.00025,120]
[346072622,1734692597958,590.08,0.00025,120]
[346072623,1734692598391,565.28875,0.00025,120]
[346072624,1734692599205,565.451,0.00025,120]
[346072625,1734692599369,542.59908,0.00025,120]
[346072626,1734692599828,496.0,0.00025,120]
[346072627,1734692669087,475.461517,0.00025,120]
[346072634,1734692964733,201.99609,0.00013973,2]
[346072679,1734693032179,-878.14869347,0.00020056,2]
[346072681,1734693032203,-1144.61544378,0.00020156,2]
[346072686,1734693036576,-102.16236324,0.00020156,2]
[346072687,1734693036586,-172.028443,0.00020443,2]
[346072688,1734693036596,-201.99609,0.00020447,2]
[346072689,1734693036606,-166.0429461,0.00020799,2]
[346072690,1734693036615,-358.8552487,0.00021146,11]
[346072691,1734693036624,-178.58240896,0.00021169,2]
[346072731,1734693038270,-201.68159104,0.00021169,2]
[346072733,1734693038280,-352.02932,0.000217,2]
[346072735,1734693038289,-352.02932,0.000217,2]
[346072737,1734693038298,-200.6953933,0.00021715,2]
[346072739,1734693038307,-200.69539328,0.00021758,2]
[346072741,1734693038316,-473.450001,0.000218,2]
[346072743,1734693038326,-10.32203703,0.000218,2]
[346072745,1734693038338,-341.70728297,0.000218,2]
[346072747,1734693038347,-352.02932,0.000218,2]
[346072749,1734693038357,-200.69539328,0.000218,2]
[346072751,1734693038366,-300.0,0.00021815,2]
[346072753,1734693038375,-300.0,0.00021815,2]
[346072755,1734693038385,-2401.20681978,0.00021817,2]
[346072757,1734693038394,-39.82524039,0.00021817,2]
[346072759,1734693038406,-1440.71763473,0.00021817,2]
[346072760,1734693038419,-227.0098644,0.00021878,2]
[346072762,1734693038429,-1642.37,0.000219,2]
[346072764,1734693038440,-151.0,0.000219,3]
[346072766,1734693038450,-151.0,0.000219,3]
[346072768,1734693038459,-151.0,0.000219,3]
[346072770,1734693038469,-151.0,0.000219,3]
[346072772,1734693038478,-151.0,0.000219,3]
[346072774,1734693038489,-151.0,0.000219,4]
[346072776,1734693038499,-151.0,0.000219,3]
[346072778,1734693038508,-117.48238649,0.000219,4]
[346072781,1734693038524,-33.51761351,0.000219,4]
[346072783,1734693038534,-151.0,0.000219,4]
[346072785,1734693038544,-151.0,0.000219,4]
[346072787,1734693038553,-151.0,0.000219,4]
[346072789,1734693038562,-151.0,0.000219,3]
[346072791,1734693038572,-151.0,0.000219,3]
[346072793,1734693038581,-151.0,0.000219,4]
[346072795,1734693038591,-151.0,0.000219,3]
[346072797,1734693038601,-151.0,0.000219,4]
[346072799,1734693038612,-151.0,0.000219,4]
[346072801,1734693038621,-151.0,0.000219,3]
[346072803,1734693038633,-151.0,0.000219,4]
[346072805,1734693038642,-151.0,0.000219,3]
[346072807,1734693038652,-151.0,0.000219,3]
[346072809,1734693038661,-151.0,0.000219,4]
[346072811,1734693038674,-151.0,0.000219,3]
[346072813,1734693038683,-151.0,0.000219,4]
[346072815,1734693038693,-151.0,0.000219,4]
[346072817,1734693038702,-151.0,0.000219,3]
[346072819,1734693038712,-151.0,0.000219,3]
[346072821,1734693038721,-151.0,0.000219,4]
[346072823,1734693038730,-151.0,0.000219,4]
[346072824,1734693038740,-151.0,0.000219,4]
[346072826,1734693038749,-151.0,0.000219,3]
[346072829,1734693038759,-151.0,0.000219,4]
[346072830,1734693038768,-176.218,0.00021916,2]
[346072833,1734693038778,-180.4415453,0.00021916,2]
[346072834,1734693038787,-500.0,0.00021916,2]
[346072836,1734693038796,-500.0,0.00021916,2]
[346072838,1734693038806,-237.59992338,0.00021916,2]
[346072887,1734693040135,-110.51460586,0.00021916,2]
[346072888,1734693040145,-500.0,0.00021916,2]
[346072889,1734693040154,-500.0,0.00021916,2]
[346072890,1734693040166,-244.03606578,0.00021916,2]
[346072891,1734693040177,-255.96393422,0.00021916,2]
[346072892,1734693040186,-500.0,0.00021916,2]
[346072893,1734693040196,-500.0,0.00021916,2]
[346072894,1734693040206,-159.20644468,0.00021916,2]
[346072923,1734693042970,-368.76450233,0.00021916,2]
[346072924,1734693042980,-500.0,0.00021916,2]
[346072925,1734693042992,-377.22833852,0.00021916,2]
[346072926,1734693043002,-500.0,0.00021916,2]
[346072927,1734693043012,-500.0,0.00021916,2]
[346072928,1734693043022,-500.0,0.00021916,2]
[346072929,1734693043031,-254.4752519,0.00021916,2]
[346072930,1734693043041,-500.0,0.00021916,2]
[346072931,1734693043050,-500.0,0.00021916,2]
[346072932,1734693043059,-500.0,0.00021916,2]
[346072933,1734693043068,-500.0,0.00021916,2]
[346072934,1734693043078,-500.0,0.00021916,2]
[346072935,1734693043087,-500.0,0.00021916,2]
[346072936,1734693043096,-500.0,0.00021916,2]
[346072937,1734693043105,-500.0,0.00021916,2]
[346072938,1734693043115,-500.0,0.00021916,2]
[346072939,1734693043125,-500.0,0.00021916,2]
[346072940,1734693043135,-253.06586964,0.00021916,2]
[346072941,1734693043144,-500.0,0.00021916,2]
[346072942,1734693043154,-500.0,0.00021916,2]
[346072943,1734693043163,-500.0,0.00021916,2]
[346072944,1734693043175,-500.0,0.00021916,2]
[346072945,1734693043185,-500.0,0.00021916,2]
[346072946,1734693043194,-500.0,0.00021916,2]
[346072947,1734693043204,-500.0,0.00021916,2]
[346072948,1734693043214,-500.0,0.00021916,2]
[346072949,1734693043224,-500.0,0.00021916,2]
[346072950,1734693043234,-500.0,0.00021916,2]
[346072951,1734693043243,-500.0,0.00021916,2]
[346072952,1734693043253,-500.0,0.00021916,2]
[346072953,1734693043263,-1000.0,0.00021917,5]
[346072954,1734693043272,-7743.77749596,0.00021917,2]
[346072955,1734693043282,-765.4538746,0.00021917,2]
[346072956,1734693043291,-500.0,0.00021917,6]
[346072957,1734693043300,-501.6381127,0.00021917,6]
[346072958,1734693043309,-500.0,0.00021917,6]
[346072959,1734693043319,-505.80521055,0.00021917,6]
[346072960,1734693043328,-557.27906894,0.00021917,6]
[346072961,1734693043338,-507.38863298,0.00021917,6]
[346072962,1734693043347,-500.0,0.00021917,6]
[346072963,1734693043356,-506.24356458,0.00021917,6]
[346072964,1734693043366,-500.0,0.00021917,6]
[346072965,1734693043376,-500.0,0.00021917,6]
[346072966,1734693043385,-568.68547137,0.00021917,6]
[346072967,1734693043395,-500.0,0.00021917,6]
[346072968,1734693043405,-500.0,0.00021917,6]
[346072969,1734693043419,-506.11510218,0.00021917,6]
[346072970,1734693043430,-599.57794302,0.00021917,6]
[346072971,1734693043440,-303.18123485,0.00021917,6]
[346072972,1734693043451,-500.0,0.00021917,6]
[346072973,1734693043461,-501.16024622,0.00021917,6]
[346072974,1734693043470,-500.0,0.00021917,6]
[346072975,1734693043481,-500.0,0.00021917,6]
[346072976,1734693043491,-500.0,0.00021917,6]
[346072977,1734693043501,-500.0,0.00021917,6]
[346072978,1734693043510,-500.0,0.00021917,6]
[346072979,1734693043519,-500.3629637,0.00021917,6]
[346072980,1734693043529,-549.67874908,0.00021917,6]
[346072981,1734693043538,-500.0,0.00021917,6]
[346072982,1734693043547,-503.40973337,0.00021917,6]
[346072983,1734693043556,-508.70092968,0.00021917,6]
[346072984,1734693043565,-500.0,0.00021917,6]
[346072985,1734693043576,-500.0,0.00021917,6]
[346072986,1734693043586,-500.0,0.00021917,6]
[346072987,1734693043595,-500.0,0.00021917,6]
[346072988,1734693043605,-500.0,0.00021917,6]
[346072989,1734693043614,-500.0,0.00021917,6]
[346072990,1734693043623,-602.42,0.00021917,6]
[346072991,1734693043632,-503.85016489,0.00021917,6]
[346072992,1734693043641,-500.0,0.00021917,6]
[346072993,1734693043650,-500.0,0.00021917,6]
[346072994,1734693043659,-500.0,0.00021917,6]
[346072995,1734693043670,-500.0,0.00021917,6]
[346072996,1734693043680,-500.0,0.00021917,6]
[346072997,1734693043689,-506.78382198,0.00021917,6]
[346072998,1734693043698,-500.0,0.00021917,6]
[346072999,1734693043707,-500.0,0.00021917,6]
[346073000,1734693043717,-500.0,0.00021917,6]
[346073001,1734693043726,-500.0,0.00021917,6]
[346073002,1734693043735,-1144.54,0.00021917,6]
[346073003,1734693043744,-500.0,0.00021917,6]
[346073004,1734693043755,-500.0,0.00021917,6]
[346073005,1734693043764,-500.0,0.00021917,6]
[346073006,1734693043773,-502.23,0.00021917,6]
[346073007,1734693043782,-500.0,0.00021917,6]
[346073008,1734693043791,-420.59166603,0.00021917,6]
[346073009,1734693043800,-500.0,0.00021917,6]
[346073010,1734693043810,-500.0,0.00021917,6]
[346073011,1734693043819,-500.0,0.00021917,6]
[346073012,1734693043829,-500.0,0.00021917,6]
[346073013,1734693043838,-500.0,0.00021917,6]
[346073014,1734693043848,-500.0,0.00021917,6]
[346073015,1734693043857,-500.0,0.00021917,6]
[346073016,1734693043867,-500.0,0.00021917,6]
[346073017,1734693043876,-500.0,0.00021917,6]
[346073018,1734693043885,-504.17,0.00021917,6]
[346073019,1734693043894,-500.0,0.00021917,6]
[346073020,1734693043904,-539.79578873,0.00021917,6]
[346073021,1734693043913,-525.39597228,0.00021917,6]
[346073022,1734693043925,-491.9241272,0.00021917,6]
[346073023,1734693043934,-500.0,0.00021917,6]
[346073024,1734693043944,-500.0,0.00021917,6]
[346073025,1734693043954,-500.0,0.00021917,6]
[346073026,1734693043963,-500.0,0.00021917,6]
[346073027,1734693043973,-500.0,0.00021917,6]
[346073028,1734693043982,-500.0,0.00021917,6]
[346073029,1734693043991,-500.0,0.00021917,6]
[346073030,1734693044001,-649.76,0.00021917,6]
[346073031,1734693044010,-660.53,0.00021917,6]
[346073032,1734693044019,-500.0,0.00021917,6]
[346073033,1734693044029,-1017.84,0.00021917,6]
[346073034,1734693044038,-500.0,0.00021917,6]
[346073035,1734693044047,-884.09,0.00021917,6]
[346073036,1734693044057,-500.0,0.00021917,6]
[346073037,1734693044249,-500.0,0.00021917,6]
[346073038,1734693044260,-500.0,0.00021917,6]
[346073039,1734693044270,-500.0,0.00021917,6]
[346073040,1734693044279,-501.74793228,0.00021917,6]
[346073041,1734693044288,-500.0,0.00021917,6]
[346073042,1734693044297,-500.0,0.00021917,6]
[346073043,1734693044306,-500.0,0.00021917,6]
[346073044,1734693044315,-500.0,0.00021917,6]
[346073045,1734693044325,-500.0,0.00021917,6]
[346073046,1734693044334,-500.0,0.00021917,6]
[346073047,1734693044343,-418.65147829,0.00021917,6]
[346073048,1734693044352,-500.0,0.00021917,6]
[346073049,1734693044361,-500.0,0.00021917,6]
[346073050,1734693044370,-500.0,0.00021917,6]
[346073051,1734693044380,-502.63111775,0.00021917,6]
[346073052,1734693044389,-500.0,0.00021917,6]
[346073053,1734693044398,-500.0,0.00021917,6]
[346073054,1734693044409,-500.0,0.00021917,6]
[346073055,1734693044420,-1445.29,0.00021917,7]
[346073056,1734693044429,-500.0,0.00021917,6]
[346073057,1734693044438,-500.0,0.00021917,6]
[346073058,1734693044449,-500.0,0.00021917,6]
[346073059,1734693044458,-800.6,0.00021917,6]
[346073060,1734693044468,-634.34,0.00021917,6]
[346073061,1734693044477,-500.0,0.00021917,6]
[346073062,1734693044487,-957.36,0.00021917,6]
[346073063,1734693044497,-500.0,0.00021917,6]
[346073064,1734693044506,-500.0,0.00021917,6]
[346073065,1734693044515,-500.0,0.00021917,6]
[346073066,1734693044524,-500.0,0.00021917,6]
[346073067,1734693044533,-500.0,0.00021917,6]
[346073068,1734693044542,-500.0,0.00021917,6]
[346073069,1734693044551,-500.0,0.00021917,6]
[346073070,1734693044560,-500.0,0.00021917,6]
[346073071,1734693044570,-1728.45,0.00021917,6]
[346073072,1734693044579,-500.0,0.00021917,6]
[346073073,1734693044588,-500.0,0.00021917,6]
[346073074,1734693044597,-500.0,0.00021917,6]
[346073075,1734693044606,-500.0,0.00021917,6]
[346073076,1734693044615,-500.0,0.00021917,6]
[346073077,1734693044624,-500.0,0.00021917,6]
[346073078,1734693044633,-500.0,0.00021917,6]
[346073079,1734693044643,-501.93131719,0.00021917,6]
[346073080,1734693044652,-500.0,0.00021917,6]
[346073081,1734693044661,-500.0,0.00021917,6]
[346073082,1734693044673,-723.0,0.00021917,6]
[346073083,1734693044682,-500.0,0.00021917,6]
[346073084,1734693044692,-1023.35,0.00021917,6]
[346073085,1734693044702,-500.0,0.00021917,6]
[346073086,1734693044711,-565.08,0.00021917,6]
[346073087,1734693044720,-500.0,0.00021917,6]
[346073088,1734693044729,-500.0,0.00021917,6]
[346073089,1734693044739,-500.0,0.00021917,6]
[346073090,1734693044748,-500.0,0.00021917,6]
[346073091,1734693044757,-500.0,0.00021917,6]
[346073092,1734693044766,-500.0,0.00021917,6]
[346073093,1734693044775,-501.2108901,0.00021917,6]
[346073094,1734693044784,-500.8672424,0.00021917,6]
[346073095,1734693044794,-500.0,0.00021917,6]
[346073096,1734693044804,-500.0,0.00021917,6]
[346073097,1734693044813,-500.0,0.00021917,6]
[346073098,1734693044822,-500.0,0.00021917,6]
[346073099,1734693044831,-500.0,0.00021917,6]
[346073100,1734693044840,-500.0,0.00021917,6]
[346073101,1734693044850,-1199.17,0.00021917,6]
[346073102,1734693044859,-500.0,0.00021917,6]
[346073103,1734693044868,-501.08019005,0.00021917,6]
[346073104,1734693044877,-507.24354631,0.00021917,6]
[346073105,1734693044888,-500.0,0.00021917,6]
[346073106,1734693044898,-500.0,0.00021917,6]
[346073107,1734693044908,-402.32018232,0.00021917,6]
[346073108,1734693044918,-500.0,0.00021917,6]
[346073109,1734693044927,-592.75,0.00021917,6]
[346073110,1734693044937,-500.0,0.00021917,6]
[346073111,1734693044947,-500.0,0.00021917,6]
[346073112,1734693044956,-500.0,0.00021917,6]
[346073113,1734693044965,-500.0,0.00021917,6]
[346073114,1734693044975,-177.75215792,0.00021917,6]
[346073115,1734693044984,-501.9505494,0.00021917,6]
[346073116,1734693044994,-500.0,0.00021917,6]
[346073117,1734693045004,-500.0,0.00021917,6]
[346073118,1734693045014,-500.0,0.00021917,6]
[346073119,1734693045023,-567.58305923,0.00021917,6]
[346073120,1734693045032,-508.65872842,0.00021917,6]
[346073121,1734693045042,-765.62,0.00021917,6]
[346073122,1734693045051,-500.0,0.00021917,6]
[346073123,1734693045060,-435.17449269,0.00021917,6]
[346073124,1734693045070,-500.0,0.00021917,6]
[346073125,1734693045079,-500.0,0.00021917,6]
[346073126,1734693045088,-500.0,0.00021917,6]
[346073127,1734693045097,-500.0,0.00021917,6]
[346073128,1734693045106,-500.0,0.00021917,6]
[346073129,1734693045116,-500.0,0.00021917,6]
[346073130,1734693045125,-500.0,0.00021917,6]
[346073131,1734693045134,-500.0,0.00021917,6]
[346073132,1734693045144,-581.22527066,0.00021917,6]
[346073133,1734693045153,-1006.14,0.00021917,6]
[346073134,1734693045162,-500.0,0.00021917,6]
[346073135,1734693045173,-500.0,0.00021917,6]
[346073136,1734693045183,-500.0,0.00021917,6]
[346073137,1734693045192,-500.0,0.00021917,6]
[346073138,1734693045202,-500.0,0.00021917,6]
[346073139,1734693045212,-887.36,0.00021917,6]
[346073140,1734693045221,-500.0,0.00021917,6]
[346073141,1734693045230,-500.0,0.00021917,6]
[346073142,1734693045240,-643.06232671,0.00021917,6]
[346073143,1734693045249,-500.0,0.00021917,6]
[346073144,1734693045259,-506.28163403,0.00021917,6]
[346073145,1734693045268,-1902.09,0.00021917,6]
[346073146,1734693045277,-500.0,0.00021917,6]
[346073147,1734693045287,-500.0,0.00021917,6]
[346073148,1734693045296,-1156.92,0.00021917,6]
[346073149,1734693045306,-500.0,0.00021917,6]
[346073150,1734693045315,-500.0,0.00021917,6]
[346073152,1734693045324,-500.0,0.00021917,6]
[346073154,1734693045334,-500.0,0.00021917,6]
[346073156,1734693045344,-502.94922291,0.00021917,6]
[346073158,1734693045354,-500.0,0.00021917,6]
[346073159,1734693045363,-500.0,0.00021917,6]
[346073160,1734693045371,-506.58594049,0.00021917,6]
[346073161,1734693045381,-500.0,0.00021917,6]
[346073162,1734693045390,-500.0,0.00021917,6]
[346073163,1734693045401,-586.22676258,0.00021917,6]
[346073164,1734693045411,-512.55746992,0.00021917,6]
[346073165,1734693045421,-508.24454506,0.00021917,6]
[346073166,1734693045431,-500.0,0.00021917,6]
[346073167,1734693045441,-500.0,0.00021917,6]
[346073169,1734693045451,-500.0,0.00021917,6]
[346073171,1734693045460,-500.0,0.00021917,6]
[346073173,1734693045470,-500.0,0.00021917,6]
[346073175,1734693045480,-506.21,0.00021917,6]
[346073177,1734693045490,-604.8968712,0.00021917,6]
[346073179,1734693045499,-511.92500694,0.00021917,6]
[346073180,1734693045509,-500.0,0.00021917,6]
[346073181,1734693045520,-538.01,0.00021917,6]
[346073182,1734693045530,-500.0,0.00021917,6]
[346073183,1734693045539,-500.0,0.00021917,6]
[346073184,1734693045548,-1161.97,0.00021917,6]
[346073185,1734693045557,-505.4276399,0.00021917,6]
[346073186,1734693045567,-500.0,0.00021917,6]
[346073187,1734693045576,-500.0,0.00021917,6]
[346073188,1734693045585,-500.0,0.00021917,6]
[346073189,1734693045594,-500.0,0.00021917,6]
[346073190,1734693045604,-500.0,0.00021917,6]
[346073191,1734693045614,-500.0,0.00021917,6]
[346073192,1734693045623,-500.0,0.00021917,6]
[346073193,1734693045632,-902.08,0.00021917,6]
[346073194,1734693045641,-500.0,0.00021917,6]
[346073195,1734693045651,-500.0,0.00021917,6]
[346073196,1734693045660,-500.0,0.00021917,6]
[346073197,1734693045670,-500.0,0.00021917,6]
[346073198,1734693045679,-1667.53,0.00021917,6]
[346073199,1734693045689,-500.0,0.00021917,6]
[346073200,1734693045698,-500.0,0.00021917,6]
[346073201,1734693045707,-500.0,0.00021917,6]
[346073202,1734693045717,-580.22,0.00021917,6]
[346073203,1734693045726,-1293.82,0.00021917,6]
[346073205,1734693045735,-500.0,0.00021917,6]
[346073207,1734693045745,-500.0,0.00021917,6]
[346073208,1734693045755,-500.0,0.00021917,6]
[346073209,1734693045765,-500.0,0.00021917,6]
[346073210,1734693045774,-500.0,0.00021917,6]
[346073211,1734693045784,-500.0,0.00021917,6]
[346073212,1734693045794,-504.67899142,0.00021917,6]
[346073213,1734693045803,-501.87509244,0.00021917,6]
[346073214,1734693045813,-1211.12,0.00021917,6]
[346073215,1734693045822,-500.0,0.00021917,6]
[346073216,1734693045832,-500.0,0.00021917,6]
[346073217,1734693045841,-500.0,0.00021917,6]
[346073218,1734693045851,-500.0,0.00021917,6]
[346073219,1734693045860,-500.0,0.00021917,6]
[346073220,1734693045869,-510.23,0.00021917,6]
[346073221,1734693045879,-500.0,0.00021917,6]
[346073223,1734693045888,-500.0,0.00021917,6]
[346073225,1734693045898,-988.28,0.00021917,6]
[346073227,1734693045908,-500.0,0.00021917,6]
[346073228,1734693045918,-502.07672888,0.00021917,6]
[346073229,1734693045927,-500.0,0.00021917,6]
[346073230,1734693045937,-2509.21,0.00021917,6]
[346073231,1734693045947,-1456.58,0.00021917,6]
[346073233,1734693045957,-454.3551317,0.00021917,6]
[346073234,1734693045967,-664.27,0.00021917,6]